{"text_format":"2","workbook":"xlsx","n_sheets":1,"sheets":["Sheet1"],"not_rendered":{"charts":0,"images":2,"macros":0,"external_links":1,"defined_names":0,"comments":0,"pivot_tables":0},"unopened":[],"bounds":{"document_bytes":16777216,"sheet_cells":100000,"run_cost":"one","rows_first":2000,"rows_last":500,"rows_between":2000,"halvings":0,"cell_chars":16384,"cell_head_chars":4096},"cells_cut":0,"cells_raw":0,"read":"whole","date_system":"1900"}

{"sheet":"Sheet1","index":0,"n_rows":17,"n_cols":10,"rows_kept":17,"cut":false,"hidden":false,"merged":[[6,0,6,9],[0,0,0,5],[1,0,1,9],[2,0,2,9],[3,0,3,9],[4,0,4,9],[5,0,5,9]]}
[]
["DIRECCIÓN GENERAL DE RECURSOS HUMANOS"]
["Concurso para Ingreso y Promoción de Personas"]
["CIRCUNSCRIPCIÓN JUDICIAL DE MISIONES"]
["LLAMADO A CONCURSO N° 238/2023"]
["Cargo: OFICIAL DE SECRETARÍA II PARA TRIBUNAL O JUZGADO DE SAN IGNACIO "]
["LISTA DE ELEGIBLES"]
["N°","Apellidos","Nombres","C.I. N°","Verificación Documental (Etapa 1)","Evaluación Curricular  (Etapa 2) 30 puntos (50%=15 ptos)","Evaluación de Conocimientos (Etapa 3) 50 puntos (60%= 30 ptos)","Evaluación de Aptitudes Psicológicas (Etapa 4) 20 ptos.","Puntaje Total 100 ptos.","Observaciones"]
[1,"FERNANDEZ FORNERON","CLAUDIO ALBERTO",4420779,"APROBADO",24,30,{"$f":"VLOOKUP($D9,'[1]CAARGOS CON 20 PUNTOS'!$D$9:$E$72,2,)","v":15},{"$f":"IF(OR(G9=\"AUSENTE\",G9=\"FRAUDE\"),0,F9+G9+H9)","v":69},{"$f":"IFERROR(VLOOKUP(D9,#REF!,4,FALSE),\"\")","v":""}]
[2,"FRANCO VERA","MIRNA DOLORES",5635687,"APROBADO",18,36,{"$f":"VLOOKUP($D10,'[1]CAARGOS CON 20 PUNTOS'!$D$9:$E$72,2,)","v":15},69,{"$f":"IFERROR(VLOOKUP(D10,#REF!,4,FALSE),\"\")","v":""}]
[3,"AGUERO BRITEZ","ELISEO ANDRES ",5607490,"APROBADO",18,32,{"$f":"VLOOKUP($D11,'[1]CAARGOS CON 20 PUNTOS'!$D$9:$E$72,2,)","v":18},68,{"$f":"IFERROR(VLOOKUP(D11,#REF!,4,FALSE),\"\")","v":""}]
[4,"CACERES ACOSTA","LOURDES MAGDALENA ",5829035,"APROBADO",18,32,{"$f":"VLOOKUP($D12,'[1]CAARGOS CON 20 PUNTOS'!$D$9:$E$72,2,)","v":18},68,{"$f":"IFERROR(VLOOKUP(D12,#REF!,4,FALSE),\"\")","v":""}]
[5,"JACQUET AQUINO ","MARIA MARLENE",4504358,"APROBADO",15,35,{"$f":"VLOOKUP($D13,'[1]CAARGOS CON 20 PUNTOS'!$D$9:$E$72,2,)","v":16},66,{"$f":"IFERROR(VLOOKUP(D13,#REF!,4,FALSE),\"\")","v":""}]
[6,"LUCENA","ALEXIS OSMAR",4504208,"APROBADO",18,30,{"$f":"VLOOKUP($D14,'[1]CAARGOS CON 20 PUNTOS'!$D$9:$E$72,2,)","v":17},65,{"$f":"IFERROR(VLOOKUP(D14,#REF!,4,FALSE),\"\")","v":""}]
[7,"TORRES ROJAS","JUAN MANUEL ",4881511,"APROBADO",16,31,{"$f":"VLOOKUP($D15,'[1]CAARGOS CON 20 PUNTOS'!$D$9:$E$72,2,)","v":18},65,{"$f":"IFERROR(VLOOKUP(D15,#REF!,4,FALSE),\"\")","v":""}]
[8,"OCAMPOS TORRES ","JOSE MANUEL ",5635695,"APROBADO",16,33,{"$f":"VLOOKUP($D16,'[1]CAARGOS CON 20 PUNTOS'!$D$9:$E$72,2,)","v":14},63,{"$f":"IFERROR(VLOOKUP(D16,#REF!,4,FALSE),\"\")","v":""}]
[9,"SEGOVIA DIAZ ","STHEPANY ANGELLI",5622248,"APROBADO",16,30,{"$f":"VLOOKUP($D17,'[1]CAARGOS CON 20 PUNTOS'!$D$9:$E$72,2,)","v":17},63,{"$f":"IFERROR(VLOOKUP(D17,#REF!,4,FALSE),\"\")","v":""}]